Cogmind - Beta 14 @@@ ROGUE MODE // 2024.10.15 @ 11:19:38 Player: Tereza Result: Destroyed by B-75 Beast with Heavy Plasma Cannon Performance ------------- Evolutions (1) 500 Regions Visited (5) 1000 Robots Destroyed (59) 295 Value Destroyed (2925) 2925 Prototype IDs (2) 40 Alien Tech Used (0) 0 Bonus (1048) 1048 TOTAL SCORE: 5808 Bonus ------- High Alert Combat Kills 204 Follower Combat Kills 152 Entered Garrisons 200 Used RIF Installer 500 Friendly Fire -8 Cogmind --------- Core Integrity 0/400 Matter 287/300 Energy 83/100 System Corruption 16% Temperature Cool (12) Movement Treading (160) Location -9/Garrison Parts ------- > --- POWER (1) -------- (None) > --- PROPULSION (2) --- Light Treads > --- UTILITY (4) ------ Heat Sink Medium Storage Unit Core Shielding > --- WEAPON (2) ------- Mini Grenade Launcher > --- INVENTORY (10) --- Ion Engine Light Treads Light Treads Armored Treads Improved Terrain Scanner Relay Coupler [Grunt] (31) Heavy Assault Rifle Katana Katana Peak State ------------ > --- POWER ------------ Light Ion Engine > --- PROPULSION ------- Armored Treads Armored Treads > --- UTILITY ---------- Small Storage Unit Sensor Array Improved Terrain Scanner Medium Armor Plating > --- WEAPON ----------- Particle Gun Mace > --- INVENTORY -------- Ion Engine Armored Treads Armored Treads Improved Terrain Scanner Particle Gun Assault Rifle Datajack Mining Laser [Rating: 19] Favorites ----------- Power Light Ion Engine Engine Light Ion Engine Propulsion Armored Treads Treads Armored Treads Leg Aluminum Leg Utility Medium Storage Unit Device Improved Terrain Scanner Storage Medium Storage Unit Processor Targeting Computer Hackware Hacking Suite Protection Core Shielding Weapon Beam Rifle Energy Gun Beam Rifle Ballistic Gun Assault Rifle Launcher Mini Grenade Launcher Impact Weapon Mace Build | -11 -10 -10 -9 -9 -9 ------- Run | Yrd Mat Min Mat Sto Gar Slots Evolved 2 | . . . 2 . . Power . | . . . . . . Propulsion . | . . . . . . Utility 2 | . . . 2 . . Weapon . | . . . . . . Parts Attached 53 | 6 2 . 22 . 23 Power 6 | 1 . . 2 . 3 Engine 6 | 1 . . 2 . 3 Core . | . . . . . . Reactor . | . . . . . . Propulsion 14 | 2 . . 6 . 6 Treads 13 | 2 . . 5 . 6 Leg 1 | . . . 1 . . Wheel . | . . . . . . Hover . | . . . . . . Flight . | . . . . . . Utility 18 | 1 1 . 9 . 7 Device 6 | . . . 4 . 2 Storage 2 | 1 . . 1 . . Processor 4 | . 1 . 1 . 2 Hackware 1 | . . . . . 1 Protection 5 | . . . 3 . 2 Artifact . | . . . . . . Weapon 15 | 2 1 . 5 . 7 Energy Gun 7 | . . . 3 . 4 Energy Cannon . | . . . . . . Ballistic Gun 5 | 2 1 . 1 . 1 Ballistic Cannon . | . . . . . . Launcher 2 | . . . . . 2 Special Weapon . | . . . . . . Impact Weapon 1 | . . . 1 . . Slashing Weapon . | . . . . . . Piercing Weapon . | . . . . . . Special Melee Weapon . | . . . . . . Unidentified Prototypes . | . . . . . . Parts Lost 25 | . . 2 5 2 16 Power 5 | . . 1 . . 4 Propulsion 5 | . . 1 1 . 3 Utility 10 | . . . 3 1 6 Weapon 5 | . . . 1 1 3 Highest Loss Streak 5 | . . 2 3 1 5 To Critical Strikes . | . . . . . . Average Slot Usage (%) 88 | . 91 100 86 95 89 Engine 10 | . 14 14 9 11 10 Treads 21 | . 28 28 20 22 21 Device 9 | . . . 14 18 5 Storage 11 | . 14 14 11 11 11 Processor 7 | . 6 14 3 11 9 Hackware 1 | . . . . . 4 Protection 3 | . . . 5 . 3 Energy Gun 10 | . . . 10 11 13 Ballistic Gun 11 | . 28 28 9 11 8 Peak Build Rating 19 | 6 7 7 19 19 19 Average Rating 14 | 4 6 6 14 17 16 On Entrance 8 | . 6 7 5 18 14 Naked Turns . | . . . . . . Heaviest Build 28 | 14 14 14 28 21 24 Greatest Support 40 | 40 40 40 40 40 40 Greatest Overweight (x) 7 | . . . 1 . 7 Average Overweight (x) . | . . . . . . Largest Inventory Capacity 10 | 8 8 8 10 10 10 Average Capacity 8 | 7 8 8 8 10 10 Most Carried 10 | 6 8 8 8 10 10 Average Carried 8 | 5 7 8 7 9 9 Final Capacity 10 | 8 8 8 10 10 10 Final Carried 10 | 6 8 8 8 10 9 Class Distribution -------------------- 62% | Mutant 37% | Scavenger-Mutant Dominant Class ---------------- Mutant | -10/Materials Mutant | -10/Mines Mutant | -9/Materials Mutant | -9/Storage Scavenger-Mutant | -9/Garrison Resources | -11 -10 -10 -9 -9 -9 ----------- Run | Yrd Mat Min Mat Sto Gar Matter Collected 1511 | 222 157 97 498 57 480 Remotely . | . . . . . . Salvage Created 2164 | . 146 145 759 254 860 Parts 143 | . 18 8 50 17 50 Haulers Intercepted 2 | . 1 . 1 . . Recyclers Shooed 1 | . . . 1 . . Parts Field Recycled . | . . . . . . Retrieved Matter . | . . . . . . Parts Self-Destructed . | . . . . . . Prevented . | . . . . . . Kills | -11 -10 -10 -9 -9 -9 ------- Run | Yrd Mat Min Mat Sto Gar Combat Hostiles Destroyed 51 | . 4 5 18 4 20 Guns 51 | . 4 5 18 4 20 Classes Destroyed 10 | . 4 . 4 1 1 Hauler 2 | . 1 . 1 . . Recycler 1 | . . . . 1 . Operator 2 | . . . 1 1 . Watcher 3 | . 2 . 1 . . Swarmer 14 | . 3 3 5 . 3 Grunt 23 | . 1 2 9 4 7 Brawler 3 | . . . 1 . 2 Duelist 4 | . . . 1 . 3 Sentry 5 | . . . 2 . 3 Programmer 2 | . . . . . 2 Best Kill Streak 5 | . 3 3 5 2 3 Combat Bots Only 5 | . 3 3 5 2 3 Max Kills in Single Turn 2 | . 1 1 2 1 2 Gunslinging 1 | . . . 1 . 1 Exploded . | . . . . . . Melee . | . . . . . . Uniques/NPCs Destroyed . | . . . . . . Combat | -11 -10 -10 -9 -9 -9 -------- Run | Yrd Mat Min Mat Sto Gar Hostile Shots Fired 273 | . 18 26 83 25 121 Missed 67 | . 3 4 24 4 32 Damage Taken 3652 | . 115 584 844 277 1832 Core 602 | . 23 173 164 58 184 Absorbed by Shields . | . . . . . . Redirected to Shielding 38 | . . . 6 . 32 Core Remaining (%) 60 | 100 . 21 . . . Volleys Fired 203 | . 18 15 67 12 91 Largest 2 | . 2 2 2 2 2 Hottest 130 | . 40 40 130 79 121 Shots Fired 386 | . 36 30 131 22 167 Gun 379 | . 36 30 131 22 160 Cannon . | . . . . . . Launcher 7 | . . . . . 7 Special . | . . . . . . Kinetic 191 | . 36 30 70 11 44 Thermal 168 | . . . 61 11 96 Explosive 7 | . . . . . 7 Electromagnetic 20 | . . . . . 20 Robot Hit Streak 20 | . 5 20 9 19 15 Robot Miss Streak 6 | . 3 1 6 2 3 Penetration Max . | . . . . . . Secondary Targets 9 | . 1 1 4 1 2 Max Gunslinging Chain 1 | . 1 1 1 1 1 Shots Hit Robots 236 | . 22 26 83 18 87 Core Hits 103 | . 9 8 31 10 45 Critical Kills 1 | . 1 . . . . Critical Parts Destroyed . | . . . . . . Critical Strikes 13 | . 1 . 2 1 9 Burn 11 | . . . 2 1 8 Destroy 1 | . 1 . . . . Corrupt 1 | . . . . . 1 Melee Attacks 1 | . . . 1 . . Impact 1 | . . . 1 . . Slashing . | . . . . . . Piercing . | . . . . . . Sneak Attacks . | . . . . . . Combat Hostiles . | . . . . . . Follow-up Attacks . | . . . . . . Damage Inflicted 3730 | . 298 323 1212 257 1640 Guns 3489 | . 296 323 1212 257 1401 Cannons . | . . . . . . Explosions 239 | . . . . . 239 Melee . | . . . . . . Ramming 2 | . 2 . . . . Kinetic 1573 | . 296 323 557 110 287 Thermal 1748 | . . . 655 147 946 Explosive 239 | . . . . . 239 Electromagnetic 168 | . . . . . 168 Impact . | . . . . . . Slashing . | . . . . . . Piercing . | . . . . . . Highest Corruption 16 | . . . 4 4 16 Average Corruption 8 | . . . 3 4 12 Corruption Purged . | . . . . . . Corruption Blocked . | . . . . . . Effects 84 | . . . 24 6 54 Message Errors 18 | . . . 5 1 12 Matter Fused 22 | . . . 6 2 14 Heat Flow Errors 10 | . . . 4 . 6 Energy Discharges 6 | . . . 2 . 4 Parts Rejected 1 | . . . 1 . . Data Loss (minor) 11 | . . . 3 1 7 Data Loss (major) 3 | . . . 1 . 2 Misfires 3 | . . . . . 3 Alerts 3 | . . . 1 . 2 Weapon Failures 7 | . . . 1 2 4 Overload Shots . | . . . . . . Overflow Damage 26 | . . . . . 26 Projectiles . | . . . . . . Explosions 26 | . . . . . 26 Melee . | . . . . . . Knockbacks . | . . . . . . Impact . | . . . . . . Kinetic . | . . . . . . Secondary . | . . . . . . Self-Inflicted Damage 91 | . . . . . 91 Shots 3 | . . . . . 3 Rammed 1 | . 1 . . . . Targets Rammed 1 | . 1 . . . . Kicked . | . . . . . . Crushed . | . . . . . . Highest Temperature 338 | . . 2 338 39 324 Average Temperature 84 | . . 1 98 12 80 Received Heat Transfer 750 | . . 96 315 150 189 Effects 2 | . . . 1 . 1 Energy Bleed 2 | . . . 1 . 1 Siege Activations . | . . . . . . Robots Corrupted . | . . . . . . Combat Hostiles . | . . . . . . Parts Fried . | . . . . . . Impact Corruptions . | . . . . . . Robots Melted . | . . . . . . Combat Hostiles . | . . . . . . Parts Melted 11 | . . . 2 . 9 Heat Transferred 4975 | . . . 1776 444 2755 Parts Sabotaged . | . . . . . . Parts Stolen . | . . . . . . Parts Stripped . | . . . . . . Power Chain Reactions . | . . . . . . Alert | -11 -10 -10 -9 -9 -9 ------- Run | Yrd Mat Min Mat Sto Gar Peak Influence 1270 | . 201 198 284 280 1270 Initial 175 | . . 78 68 119 175 Average 302 | . 133 155 81 165 601 Maximum Alert Level 4 | . 1 . 1 1 4 Low Security (%) 52 | 100 75 100 88 71 3 Level 1 14 | . 24 . 11 28 15 Level 2 22 | . . . . . 55 Level 3 6 | . . . . . 16 Level 4 3 | . . . . . 8 Level 5 . | . . . . . . High Security . | . . . . . . Max Security . | . . . . . . Squads Dispatched 3 | . 1 . 1 1 . Investigation . | . . . . . . Extermination . | . . . . . . Reinforcement 3 | . 1 . 1 1 . Assault . | . . . . . . Garrison . | . . . . . . Intercept . | . . . . . . Searches Triggered . | . . . . . . Construction Impeded . | . . . . . . Haulers Reinforced . | . . . . . . Active Scanning Responses . | . . . . . . Cargo Convoy Interrupts . | . . . . . . Stealth | -11 -10 -10 -9 -9 -9 --------- Run | Yrd Mat Min Mat Sto Gar Distress Signals 6 | . 3 . 2 1 . Communications Jammed . | . . . . . . Distress Signals . | . . . . . . Times Spotted 80 | . 11 6 25 8 30 Peak Tracking Total 6 | . 6 2 5 3 3 Tactical Retreats 4 | . 1 . 1 . 2 Traps | -11 -10 -10 -9 -9 -9 ------- Run | Yrd Mat Min Mat Sto Gar Traps Triggered 2 | . . . 1 . 1 Indirectly . | . . . . . . Trap Hack Attempts . | . . . . . . Triggered . | . . . . . . Disarmed . | . . . . . . Reprogrammed . | . . . . . . Reused . | . . . . . . Traps Extracted . | . . . . . . Installed . | . . . . . . Triggered . | . . . . . . Machines | -11 -10 -10 -9 -9 -9 ---------- Run | Yrd Mat Min Mat Sto Gar Machines Disabled 9 | . . . . . 9 Max in Single Turn 2 | . . . . . 2 Garrison Relay 5 | . . . . . 5 Phase Generator 1 | . . . . . 1 Machines Repaired . | . . . . . . Machines Dismantled . | . . . . . . Machines Sabotaged . | . . . . . . Overloaded Fab Kills . | . . . . . . Hacking | -11 -10 -10 -9 -9 -9 --------- Run | Yrd Mat Min Mat Sto Gar Machines Accessed 16 | . 1 . 7 5 3 Terminals 15 | . 1 . 7 4 3 Fabricators . | . . . . . . Repair Stations . | . . . . . . Recycling Units . | . . . . . . Scanalyzers . | . . . . . . Garrison Access 1 | . . . . 1 . Total Hacks 36 | . 6 . 15 8 7 Successful 13 | . 2 . 5 5 1 Failed 23 | . 4 . 10 3 6 Catastrophic 2 | . . . . . 2 Database Lockouts . | . . . . . . Manual 18 | . 2 . 12 4 . Terminals 34 | . 6 . 15 6 7 Fabricators . | . . . . . . Repair Stations . | . . . . . . Recycling Units . | . . . . . . Scanalyzers . | . . . . . . Garrison Access 2 | . . . . 2 . Terminal Hacks 7 | . 1 . 3 2 1 Prototype ID Bank 1 | . 1 . . . . Open Door 2 | . . . . 2 . Branch Access Points 1 | . . . 1 . . Emergency Access Points 1 | . . . . . 1 Alert Level 1 | . . . 1 . . Recall Reinforcements 1 | . . . 1 . . Fabricator Hacks . | . . . . . . Repair Station Hacks . | . . . . . . Recycling Unit Hacks . | . . . . . . Scanalyzer . | . . . . . . Garrison Access Hacks 1 | . . . . 1 . Unlock Access 1 | . . . . 1 . Unauthorized Hacks 5 | . 1 . 2 2 . Terminals 5 | . 1 . 2 2 . Botnet 5 | . 1 . 2 2 . Fabricators . | . . . . . . Repair Stations . | . . . . . . Recycling Units . | . . . . . . Scanalyzers . | . . . . . . Garrison Access . | . . . . . . Data Cores Recovered 1 | . . . . 1 . Used . | . . . . . . Hacking Detections 12 | . 1 . 6 2 3 Full Trace Events 3 | . . . 1 . 2 Feedback Events 1 | . . . . . 1 Corruption 1 | . . . . . 1 Feedback Blocked . | . . . . . . Robot Schematics Acquired . | . . . . . . Robots Built . | . . . . . . Authchips . | . . . . . . Time . | . . . . . . Total Robot Build Rating . | . . . . . . Part Schematics Acquired . | . . . . . . Parts Built . | . . . . . . Authchips . | . . . . . . Time . | . . . . . . Total Part Build Rating . | . . . . . . Parts Repaired . | . . . . . . Time . | . . . . . . Parts Recycled . | . . . . . . Recycled Matter . | . . . . . . Retrieved Matter . | . . . . . . Retrieved Components . | . . . . . . Parts Scanalyzed . | . . . . . . Part Schematics Acquired . | . . . . . . Parts Damaged . | . . . . . . Bothacking | -11 -10 -10 -9 -9 -9 ------------ Run | Yrd Mat Min Mat Sto Gar Used RIF Installer 1 | . . . . . 1 Robots Hacked . | . . . . . . Non-combat . | . . . . . . Combat . | . . . . . . Robot Hacks Applied . | . . . . . . Relay Couplers Released 23 | . . . . . 23 Machine Destruction 23 | . . . . . 23 Fabnet Peak Effective % . | . . . . . . Robots Rewired 2 | . . . . . 2 Allies Hacked . | . . . . . . Hacks Repelled . | . . . . . . Allies | -11 -10 -10 -9 -9 -9 -------- Run | Yrd Mat Min Mat Sto Gar Total Allies 2 | . . . . . 2 Largest Group 2 | . . . . . 2 Highest-Rated Group 70 | . . . . . 70 Highest-Rated Ally 39 | . . . . . 39 Total Orders . | . . . . . . Ally Attacks 32 | . . . . . 32 Total Damage 390 | . . . . . 390 Kills 7 | . . . . . 7 Allies Corrupted . | . . . . . . Allies Melted . | . . . . . . Intel | -11 -10 -10 -9 -9 -9 ------- Run | Yrd Mat Min Mat Sto Gar Robot Analysis Total . | . . . . . . Derelict Logs Recovered . | . . . . . . Drone Launches . | . . . . . . Drone Recoveries . | . . . . . . Exploration | -11 -10 -10 -9 -9 -9 ------------- Run | Yrd Mat Min Mat Sto Gar Turns Passed 3465 | 120 306 102 1330 195 1412 Spaces Moved 1615 | 64 151 36 634 83 647 Core 7 | 6 . . . . 1 Treads 1606 | 58 151 36 632 83 646 Legs 2 | . . . 2 . . Wheels . | . . . . . . Hover . | . . . . . . Flight . | . . . . . . Fastest Speed 50 | 50 160 160 160 170 160 Average Speed 165 | 149 160 160 167 170 167 Slowest Speed 400 | 160 160 160 190 170 400 Overloaded Moves . | . . . . . . Propulsion Burnouts . | . . . . . . Robots Hopped . | . . . . . . Cave-ins Triggered . | . . . . . . Exploration Rate (%) 33 | 4 27 11 56 17 84 Regions Visited 5 Branch Regions 2 Pre-discovered Areas . | . . . . . . Known Exits Taken 4 | . 1 1 1 1 . Unknown Exits Taken 1 | 1 . . . . . Scrap Searched 1 | . . 1 . . . Spaces Dug 5 | . . . 1 . 4 Terrain Destroyed 111 | . . . 1 . 110 Melee 1 | . . . 1 . . Projectile . | . . . . . . AOE 110 | . . . . . 110 Terrain Rammed . | . . . . . . Walls Destroyed . | . . . . . . Machines Disabled . | . . . . . . Actions | -11 -10 -10 -9 -9 -9 --------- Run | Yrd Mat Min Mat Sto Gar Total 2022 | 85 180 51 785 116 805 Wait 85 | 10 2 1 31 18 23 Move 1610 | 63 150 35 633 82 647 Hop . | . . . . . . Pick Up 35 | 6 4 . 15 3 7 Fast Attach 23 | 6 1 . 6 . 10 Attach 13 | . . . 6 . 7 Detach 1 | . . . . . 1 Swap 17 | . 1 . 10 . 6 Drop 25 | . 3 . 16 1 5 Fire 203 | . 18 15 67 12 91 Melee 1 | . . . 1 . . Ram . | . . . . . . Kick . | . . . . . . Crush 1 | . 1 . . . . Escape Stasis . | . . . . . . Rewire 8 | . . . . . 8 Trap . | . . . . . . Miscellaneous . | . . . . . . Route ------- -11/Scrapyard -10/Materials -10/Mines -9/Materials (discovered 6 exits: *Mat x2 / Min x2 / *Sto x2) -9/Storage -9/Garrison (discovered 3 exits: *Mat x3) History --------- Turn | Location | Event 14 | -11/Scrapyard | Discovered new exit (range 16) 121 | -11/Scrapyard | Entered Materials 237 | -10/Materials | Discovered new exit (range 8) 319 | -10/Materials | Build established: Mutant 425 | -10/Materials | Identified exit to Mines 427 | -10/Materials | Entered Mines 518 | -10/Mines | Assembled infested the area 518 | -10/Mines | Discovered new exit (range 8) 523 | -10/Mines | Assisted by a Guerilla fighting off Assembled 525 | -10/Mines | Core integrity fell below 50% 528 | -10/Mines | Identified exit to Materials 529 | -10/Mines | Entered Materials 529 | -9/Materials | Evolved 2 slots: Utility x2 889 | -9/Materials | Lost 3 parts (1n1u1w) 1119 | -9/Materials | Discovered new exit (range 3) 1486 | -9/Materials | Identified exit to Mines 1486 | -9/Materials | Identified exit to Storage 1822 | -9/Materials | Discovered new exit (range 10) 1859 | -9/Materials | Entered Storage 1995 | -9/Storage | Core integrity fell below 50% 2052 | -9/Storage | Identified exit to Garrison 2054 | -9/Storage | Entered Garrison 2141 | -9/Garrison | System corruption reached 10% 2162 | -9/Garrison | Lost 3 parts (1n1u1w) 2313 | -9/Garrison | Garrison Relay disabled 2412 | -9/Garrison | Triggered checkpoint 2462 | -9/Garrison | Build established: Scavenger-Mutant 2508 | -9/Garrison | Discovered new exit (range 13) 2525 | -9/Garrison | Installed Relay Interface Framework 2552 | -9/Garrison | Triggered checkpoint 2574 | -9/Garrison | Garrison Relay disabled 2730 | -9/Garrison | Triggered checkpoint 2769 | -9/Garrison | Lost 5 parts (1p1n3u) 2832 | -9/Garrison | Triggered checkpoint 2899 | -9/Garrison | Discovered new exit (range 10) 2916 | -9/Garrison | Identified exit to Materials 2940 | -9/Garrison | Triggered checkpoint 2977 | -9/Garrison | Garrison Relay disabled 3217 | -9/Garrison | Garrison Relay disabled 3269 | -9/Garrison | Garrison Relay disabled 3368 | -9/Garrison | Discovered exit to Materials (range 2) 3392 | -9/Garrison | Phase Generator disabled 3435 | -9/Garrison | Spotted B-75 Beast 3443 | -9/Garrison | Spotted B-75 Beast 3465 | -9/Garrison | Core integrity fell below 20% 3466 | -9/Garrison | Destroyed by B-75 Beast with Heavy Plasma Cannon Last Messages --------------- G-34 Mercenary destroyed. The unstable cave ceiling collapses. Overheating: Energy bleed (-24). System corrupted: Heat flow error (+143). Discarded Melee Analysis Suite. Acquired Heat Sink. Acquired 18 matter. System corrupted: Energy discharge (-41). The unstable cave ceiling collapses. B-75 Beast springs to life. Knocked back. B-75 Beast springs to life. B-75 Beast suffers critical hit (Burn). Shock Rifle destroyed. Lgt. Armor Plating destroyed. Lgt. Ion Engine destroyed. Acquired 7 matter. Beam Rifle destroyed. Destroyed Beam Rifle. Lgt. Treads destroyed. Map ----- +----------------------------------------------------+ | ??#####?#! #???# =#?#####???????????????????? | | ###!!!###* #???# =###!!!##?#####????????????? | | = %%%= #???# [ "###"T"#????????????? | | #########[/#???# [###### "#????????????? | | #???????# #???# #????# #######????????????? | | #???????# T#??# #????# #??????????????????? | | #???????# ##??#%/#????# #??????????????????? | | #???????# #???# #????# #??????????????????? | | #???????" #???# "?#### #########??????????? | | #?????#?" #???# "?# =[*#??????????? | | #???????" #???# "?############%##?????????? | | #???????# #???# ????????????#=[ #?????????? | | ######### ###?# #############!<=#?????????? | | #?????????? | | #?????????? | | #?????????? | | ####### ###?#### ############+##?????????? | | #?????? ???????????????????## ###????????? | | #?????? ?????????????????### # ##???????? | | #?????# ????????????????## # ####????? | | #???????????????????????## #????? | | #?????????????????####### #????? | | #???????????????# # # #????? | | #????????????#### BB #????? | | #????????????#[[[ !BB # #????? | | BB @ % #??? | | BB # # ##??? | | ############## # #???? | | #???????????#] # # ##???? | | "???????????#] #### #????? | | "???????????#########???### # # # #????? | | "?????????????????????????# # ##????? | | "?????????????????????????###########?????? | | #?????????????????????????????????????????? | | #?????????????????????????????????????????? | | #?????????????????????????????????????????? | | #?????????????????????????????????????????? | | #?????????????????????#???????????????????? | | #????????????????????+??#?????????????????? | | #?????????????????#???????????????????????? | | #????????????????????+??#?????????????????? | | #?????????????????????#???????????????????? | | #?????????????????????????????????????????? | | #?????????????????????????????????????????? | | ###################################???????? | | ^ * #???????? | | ==*%[= #???????? | | %[%[* #???????? | | ##################" %### ######## #???????? | | ?????????????????## #?#%#??????# #???????? | +----------------------------------------------------+ Best States ------------- Heat Dissipation 48 Energy Generation 12 Energy Capacity 265 Matter Stores 300 Matter Capacity 300 Sight Range 16 Robot Scan Range 14 Terrain Scan Range 16 Terrain Scan Density 10 Armor Coverage 225 Core Shielding 20 Evasion (%) 40 Targeting Accuracy 5 Melee Accuracy 5 Recoil Reduction 2 Offensive Hacking 10 Item Schematics ----------------- None Robot Schematics ------------------ None Fabricated ------------ Nothing Alien Tech Used ----------------- None Achievements -------------- None Challenges ------------ None Game ------ Seed SupercompositeMediumCharge Manual? 0 Play Time 00:21:10 Cumulative 71.8 hours Start 2024.10.15 @ 10:57:24 End 2024.10.15 @ 11:19:38 Sessions 1 Manual Loads 0 Difficulty Rogue Special Mode None Game No. 84 Rogue 84 Adventurer 0 Explorer 0 Win Type - Total 0 Types 0/0/0/0/0/0/0/0/0 Lore% 49 Gallery% 42 Achievement% 35 Wizard Run 0 Options --------- Layout 1 ASCII 0 Keyboard 1 Movement Numpad Keybinds 0 Fullscreen 1 Font 24/Smallcaps Map View 50x35 Zoom Use 0% Tactical HUD 0 Map Filters NONE Filters NONE Steam 1 RUN: 36746fab-6cf7-48ac-862b-1d94160ddfa7